Workbook

Sheet Sheet1
A1: Sở Tài chính tỉnh Vĩnh Long | E1: biểu số 1
A2: Chương 418
A4: DỰ TOÁN THU, CHI NGÂN SÁCH ĐƯỢC GIAO
A5: VÀ PHÂN BỔ CHO CÁC ĐƠN VỊ TRỰC THUỘC năm 2025
A6: (Kèm theo Quyết định số 17/QĐ-STC ngày 09/ 01/2025 của Sở Tài chính)
D8: Đơn vị tính: triệu đồng
A9: Stt | B9: Nội dung | C9: Tổng số được giao | D9: Tổng số đã phân bổ | E9: Trong đó
E10: Sở Tài chính | F10: TT Thông tin tư vấn và dịch vụ tài chính
A11: A | B11: Tổng số thu, chi nộp ngân sách
A12: I | B12: Số thu | C12: =E12+F12 -> 4,879 | D12: =E12+F12 -> 4,879 | E12: =SUM(E13:E17) -> 4,123 | F12: =SUM(F13:F17) -> 756
B13: - Thu chi phí thẩm tra phê duyệt quyết toán dự án | C13: =E13+F13 -> 4,000 | D13: =E13+F13 -> 4,000 | E13: 4,000
B14: - Thu đăng ký giá nước | C14: =E14+F14 -> 0 | D14: =E14+F14 -> 0
B15: - Thu chi phí thẩm định giá đất của Hội đồng thẩm định giá đất áp dụng bồi thường | C15: 0 | D15: 0
B16: - Các khoản sai phạm do thanh tra phát hiện thu hồi nộp NSNN | C16: 123 | D16: 123 | E16: 123
B17: - Thu hoạt động dịch vụ | C17: 756 | D17: 756 | F17: 756
A18: II | B18: Chi từ nguồn thu được để lại | C18: =E18+F18 -> 4,756 | D18: 4,756 | E18: =SUM(E19:E22) -> 4,000 | F18: =SUM(F19:F22) -> 756
B19: - Chi phí thẩm tra, phê duyệt quyết toán dự án (chi thù lao quyết toán công trình, văn phòng phẩm, bơm mực, sửa thiết bị văn phòng, tin học; chi khác) | C19: =E19+F19 -> 4,000 | D19: 4,000 | E19: 4,000
B20: - Chi đăng ký giá nước (photo, văn phòng phẩm, gửi bảng giá…) | C20: =E20+F20 -> 0 | D20: 0
B21: - Chi phí thẩm định giá đất của Hội đồng thẩm định giá đất áp dụng bồi thường (nước uống họp, chi cho thành viên họp thẩm định phương án giá đất) | C21: 0 | D21: 0
B22: - Hoạt động dịch vụ | C22: 756 | D22: 756 | F22: 756
A23: III | B23: Nộp ngân sách nhà nước | C23: 178 | D23: 178 | E23: =E24+E25 -> 123 | F23: =F24+F25 -> 55
B24: - Các khoản sai phạm do thanh tra phát hiện thu hồi | C24: 123 | D24: 123 | E24: 123
B25: - Thuế GTGT, TNDN từ thu dịch vụ | C25: 55 | D25: 55 | F25: 55
A26: B | B26: Dự toán chi NSNN | C26: 13,958 | D26: 13,958 | E26: =E27+E31+E34+E39+E44+E47 -> 13,658 | F26: =F27+F31+F34+F39+F44+F47 -> 300
A27: 1 | B27: Quản lý hành chính (340-341) | C27: 12,992 | D27: 12,992 | E27: =E28+E30 -> 12,992
A28: 1.1 | B28: Kinh phí thực hiện tự chủ | C28: 11,803 | D28: 11,803 | E28: 11,803
B29: trong đó tiết kiệm 10% cải cách tiền lương | C29: 0 | D29: 0
A30: 1.2 | B30: Kinh phí không thực hiện tự chủ | C30: 1,189 | D30: 1,189 | E30: 1,189
A31: 2 | B31: Nghiên cứu khoa học (100-103) | C31: 40 | D31: 40 | E31: =E32+E33 -> 40
A32: 2.1 | B32: Kinh phí nhiệm vụ thường xuyên theo chức năng | C32: =E32+F32 -> 0 | D32: 0
A33: 2.2 | B33: Kinh phí nhiệm vụ không thường xuyên | C33: =E33+F33 -> 40 | D33: 40 | E33: 40
A34: 3. | B34: Sự nghiệp giáo dục, đào tạo, dạy nghề | C34: =E34+F34 -> 500 | D34: 500 | E34: =E35+E36 -> 500
A35: 3.1 | B35: Kinh phí nhiệm vụ thường xuyên | C35: =E35+F35 -> 0 | D35: 0
A36: 3.2 | B36: Kinh phí nhiệm vụ không thường xuyên | C36: 500 | D36: 500 | E36: =E37+E38 -> 500
B37: loại 070 khoản 082 | C37: 100 | D37: 100 | E37: 100
B38: loại 070 khoản 085 | C38: 400 | D38: 400 | E38: 400
A39: 4 | B39: Sự nghiệp kinh tế | C39: =E39+F39 -> 300 | D39: 300 | E39: =E40+E41 -> 0 | F39: =F40+F41 -> 300
A40: 4.1 | B40: Kinh phí nhiệm vụ thường xuyên | C40: =E40+F40 -> 0 | D40: 0
A41: 4.2 | B41: Kinh phí nhiệm vụ không thường xuyên | C41: 300 | D41: 300 | E41: =E42+E43 -> 0 | F41: =F42+F43 -> 300
B42: loại 280 khoản 312 | C42: 0 | D42: 0
B43: loại 280 khoản 338 | C43: 300 | D43: 300 | F43: 300
A44: 5 | B44: Chi khác ngân sách (400-428) | C44: 126 | D44: 126 | E44: =E45+E46 -> 126
A45: 5.1 | B45: Kinh phí nhiệm vụ thường xuyên | C45: 0 | D45: 0
A46: 5.2 | B46: Kinh phí nhiệm vụ không thường xuyên | C46: 126 | D46: 126 | E46: 126
A47: 6 | B47: Sự nghiệp thông tin truyền thông 160-171 | C47: =D47 -> 0 | D47: =E47+F47 -> 0 | E47: =E48+E49 -> 0
A48: 6.1 | B48: Kinh phí nhiệm vụ thường xuyên | C48: =D48 -> 0 | D48: =E48+F48 -> 0
A49: 6.2 | B49: Kinh phí nhiệm vụ không thường xuyên | C49: 0 | D49: 0

Sheet Sheet2
A1: Sở Tài chính tỉnh Vĩnh Long | C1: biểu số 2
A2: Chương 418
A4: DỰ TOÁN THU, CHI NGÂN SÁCH NHÀ NƯỚC NĂM 2025
A5: (Kèm theo Quyết định số 17 /QĐ-STC ngày 09/ 01/2025 của Sở Tài chính)
C7: Đơn vị tính: triệu đồng
A8: Stt | B8: Nội dung | C8: Dự toán được giao
A9: A | B9: Tổng số thu, chi nộp ngân sách
A10: I | B10: Số thu | C10: =SUM(C11:C15) -> 4,123
B11: - Thu chi phí thẩm tra phê duyệt quyết toán dự án | C11: 4,000
B12: - Thu đăng ký giá nước
B13: - Thu chi phí thẩm định giá đất của Hội đồng thẩm định giá đất áp dụng bồi thường
B14: - Các khoản sai phạm do thanh tra phát hiện thu hồi nộp NSNN | C14: 123
B15: - Thu hoạt động dịch vụ
A16: II | B16: Chi từ nguồn thu được để lại | C16: =SUM(C17:C20) -> 4,000
B17: - Chi phí thẩm tra, phê duyệt quyết toán dự án (chi thù lao quyết toán công trình, văn phòng phẩm, bơm mực, sửa thiết bị văn phòng, tin học; chi khác) | C17: 4,000
B18: - Chi đăng ký giá nước (photo, văn phòng phẩm, gửi bảng giá…)
B19: - Chi phí thẩm định giá đất của Hội đồng thẩm định giá đất áp dụng bồi thường (nước uống họp, chi cho thành viên họp thẩm định phương án giá đất)
B20: - Hoạt động dịch vụ
A21: III | B21: Nộp ngân sách nhà nước | C21: =C22+C23 -> 123
B22: - Các khoản sai phạm do thanh tra phát hiện thu hồi | C22: 123
B23: - Thuế GTGT, TNDN từ thu dịch vụ
A24: B | B24: Dự toán chi NSNN | C24: =C25+C29+C32+C37+C42+C45 -> 13,658
A25: 1 | B25: Quản lý hành chính (340-341) | C25: =C26+C28 -> 12,992
A26: 1.1 | B26: Kinh phí thực hiện tự chủ | C26: 11,803
B27: trong đó tiết kiệm 10% cải cách tiền lương
A28: 1.2 | B28: Kinh phí không thực hiện tự chủ | C28: 1,189
A29: 2 | B29: Nghiên cứu khoa học (100-103) | C29: =C30+C31 -> 40
A30: 2.1 | B30: Kinh phí nhiệm vụ thường xuyên theo chức năng
A31: 2.2 | B31: Kinh phí nhiệm vụ không thường xuyên | C31: 40
A32: 3. | B32: Sự nghiệp giáo dục, đào tạo, dạy nghề | C32: =C33+C34 -> 500
A33: 3.1 | B33: Kinh phí nhiệm vụ thường xuyên
A34: 3.2 | B34: Kinh phí nhiệm vụ không thường xuyên | C34: =C35+C36 -> 500
B35: loại 070 khoản 082 | C35: 100
B36: loại 070 khoản 085 | C36: 400
A37: 4 | B37: Sự nghiệp kinh tế | C37: =C38+C39 -> 0
A38: 4.1 | B38: Kinh phí nhiệm vụ thường xuyên
A39: 4.2 | B39: Kinh phí nhiệm vụ không thường xuyên | C39: =C40+C41 -> 0
B40: loại 280 khoản 312
B41: loại 280 khoản 338
A42: 5 | B42: Chi khác ngân sách (400-428) | C42: =C43+C44 -> 126
A43: 5.1 | B43: Kinh phí nhiệm vụ thường xuyên
A44: 5.2 | B44: Kinh phí nhiệm vụ không thường xuyên | C44: 126
A45: 6 | B45: Sự nghiệp thông tin truyền thông 160-171 | C45: =C46+C47 -> 0
A46: 6.1 | B46: Kinh phí nhiệm vụ thường xuyên
A47: 6.2 | B47: Kinh phí nhiệm vụ không thường xuyên

Sheet Sheet3
A1: TT Thông tin tư vấn và dịch vụ tài chính | C1: biểu số 2
A2: Chương 418
A4: DỰ TOÁN THU, CHI NGÂN SÁCH NHÀ NƯỚC NĂM 2025
A5: (Kèm theo Quyết định số 17/QĐ-STC ngày 09/01/2025 của Sở Tài chính)
C7: Đơn vị tính: triệu đồng
A8: Stt | B8: Nội dung | C8: Dự toán được giao
A9: A | B9: Tổng số thu, chi nộp ngân sách
A10: 1 | B10: Số thu | C10: =SUM(C11:C11) -> 756
B11: - Thu hoạt động dịch vụ | C11: 756
A12: 2 | B12: Chi từ nguồn thu được để lại | C12: =SUM(C13:C13) -> 680
B13: - Hoạt động dịch vụ | C13: 680
A14: 3 | B14: Nộp ngân sách nhà nước | C14: =C15 -> 76
B15: - Thuế GTGT, TNDN từ thu dịch vụ | C15: 76
A16: B | B16: Dự toán chi NSNN | C16: =C17+C21+C24+C27 -> 300
A17: 1 | B17: Chi quản lý hành chính
A18: 1.1 | B18: Kinh phí thực hiện tự chủ
B19: trong đó tiết kiệm 10% cải cách tiền lương
A20: 1.2 | B20: Kinh phí không thực hiện tự chủ
A21: 2 | B21: Nghiên cứu khoa học
A22: 2.1 | B22: Kinh phí nhiệm vụ thường xuyên theo chức năng
A23: 2.2 | B23: Kinh phí nhiệm vụ không thường xuyên
A24: 3 | B24: Sự nghiệp giáo dục, đào tạo, dạy nghề
A25: 3.1 | B25: Kinh phí nhiệm vụ thường xuyên
A26: 3.2 | B26: Kinh phí nhiệm vụ không thường xuyên
A27: 4 | B27: Sự nghiệp kinh tế (280-338) | C27: =C28+C29 -> 300
A28: 4.1 | B28: Kinh phí nhiệm vụ thường xuyên (tự chủ)
A29: 4.2 | B29: Kinh phí nhiệm vụ không thường xuyên | C29: 300
